[Event "2nd Gujarat Open 2019"]
[Site "Ahmedabad, Gujarat"]
[Date "2019.09.29"]
[Round "10.10"]
[White "Nguyen, Van Huy"]
[Black "Thanki, Hemal Karsanji"]
[Result "1-0"]
[ECO "A61"]
[WhiteElo "2454"]
[BlackElo "2098"]
[Annotator "ChessBase"]
[PlyCount "99"]
[EventDate "2019.09.22"]
[EventType "swiss"]
[EventCountry "IND"]
[SourceTitle "playchess.com"]
[Source "ChessBase"]
[SourceQuality "1"]
[TimeControl "5400+30"]

1. d4 {[%emt 0:00:00]} Nf6 {[%emt 0:00:00]} 2. c4 {[%emt 0:00:04]} e6 {[%emt 0:00:00]} 3. Nf3 {[%emt 0:00:25]} c5 {[%emt 0:00:00]} 4. d5 {[%emt 0:00:28]} exd5 {[%emt 0:00:00]} 5. cxd5 {[%emt 0:00:06]} d6 {[%emt 0:00:00]} 6. Nc3 {[%emt 0:00:13]} g6 {[%emt 0:00:00]} 7. Nd2 {[%emt 0:00:49]} Nbd7 {[%emt 0:00:10]} 8. e4 {[%emt 0:01:13]} Bg7 {[%emt 0:00:04]} 9. Be2 {[%emt 0:03:40]} O-O {[%emt 0:00:07]} 10. O-O {[%emt 0:00:07]} a6 {[%emt 0:03:07]} 11. a4 {[%emt 0:00:14]} Ne5 {[%emt 0:03:24]} 12. f4 {[%emt 0:03:25]} Neg4 {[%emt 0:00:50]} 13. Nc4 {[%emt 0:00:33]} Re8 {[%emt 0:00:58]} 14. h3 {[%emt 0:03:41]} Nxe4 {[%emt 0:03:25]} 15. Bxg4 {[%emt 0:02:02]} Bd4+ {[%emt 0:04:06]} 16. Kh2 {[%emt 0:01:01]} Nf2 {[%emt 0:04:08]} 17. Rxf2 {[%emt 0:00:14]} Bxf2 {[%emt 0:00:03]} 18. Qf3 {[%emt 0:03:36]} Bd4 {[%emt 0:19:49]} 19. Bxc8 {[%emt 0:00:52]} Rxc8 {[%emt 0:02:50]} 20. Bd2 {[%emt 0:01:20]} f5 {[%emt 0:04:10]} 21. a5 {[%emt 0:00:27]} Rc7 {[%emt 0:01:28]} 22. Ra3 {[%emt 0:02:18]} Rd7 {[%emt 0:07:06]} 23. Rb3 {[%emt 0:03:11]} Bxc3 {[%emt 0:02:21]} 24. Bxc3 {[%emt 0:02:50]} Re4 {[%emt 0:00:11]} 25. Nd2 {[%emt 0:00:35]} Ra4 {[%emt 0:05:38]} 26. Qf2 {[%emt 0:05:23]} Qf8 {[%emt 0:08:06]} 27. Rb6 {[%emt 0:01:06]} Qf7 {[%emt 0:13:12]} 28. Qe3 {[%emt 0:01:48]} Re7 {[%emt 0:01:20]} 29. Qf3 {[%emt 0:00:43]} Rd7 {[%emt 0:01:11]} 30. b3 {[%emt 0:04:58]} Ra2 {[%emt 0:00:53]} 31. Nc4 {[%emt 0:00:17]} Qe7 {[%emt 0:00:52]} 32. Bb2 {[%emt 0:01:22]} Qe4 {[%emt 0:01:44]} 33. Qxe4 {[%emt 0:00:44]} fxe4 {[%emt 0:00:02]} 34. Kg3 {[%emt 0:00:44]} Kf8 {[%emt 0:02:14]} 35. Kf2 {[%emt 0:00:50]} Ke7 {[%emt 0:00:10]} 36. Ke3 {[%emt 0:00:58]} Kd8 {[%emt 0:01:25]} 37. g4 {[%emt 0:00:52]} Kc7 {[%emt 0:00:37]} 38. f5 {[%emt 0:00:39]} gxf5 {[%emt 0:01:30]} 39. gxf5 {[%emt 0:00:04]} Rxa5 {[%emt 0:00:30]} 40. Rxb7+ {[%emt 0:00:30]} Kxb7 {[%emt 0:00:30]} 41. Nxa5+ {[%emt 0:00:30]} Kc8 {[%emt 0:00:33]} 42. Nc4 {[%emt 0:00:00]} Kd8 {[%emt 0:01:05]} 43. Kxe4 {[%emt 0:00:00]} Ke8 {[%emt 0:00:08]} 44. f6 {[%emt 0:00:00]} Kf7 {[%emt 0:01:02]} 45. Kf5 {[%emt 0:00:00]} Rd8 {[%emt 0:01:20]} 46. Bc1 {[%emt 0:00:23]} Kg8 {[%emt 0:04:24]} 47. Bf4 {[%emt 0:00:23]} Rb8 {[%emt 0:00:17]} 48. Nxd6 {[%emt 0:00:12]} c4 {[%emt 0:01:58]} 49. bxc4 {[%emt 0:00:21]} Ra8 {[%emt 0:00:41]} 50. Bh6 {[%emt 0:00:18]} 1-0

[Event "2nd Gujarat Open 2019"]
[Site "Ahmedabad, Gujarat"]
[Date "2019.09.29"]
[Round "10.11"]
[White "Abu Sufian, Shakil"]
[Black "Neelotpal, Das"]
[Result "1/2-1/2"]
[ECO "B15"]
[WhiteElo "2255"]
[BlackElo "2433"]
[Annotator "ChessBase"]
[PlyCount "66"]
[EventDate "2019.09.22"]
[EventType "swiss"]
[EventCountry "IND"]
[SourceTitle "playchess.com"]
[Source "ChessBase"]
[SourceQuality "1"]
[TimeControl "5400+30"]

1. e4 {[%emt 0:00:00]} c6 {[%emt 0:00:00]} 2. d4 {[%emt 0:00:00]} d5 {[%emt 0:00:00]} 3. Nc3 {[%emt 0:00:34]} dxe4 {[%emt 0:00:00]} 4. Nxe4 {[%emt 0:00:04]} Nf6 {[%emt 0:00:00]} 5. Nxf6+ {[%emt 0:00:12]} exf6 {[%emt 0:00:00]} 6. c3 {[%emt 0:01:13]} Bd6 {[%emt 0:00:06]} 7. Bd3 {[%emt 0:00:10]} O-O {[%emt 0:00:05]} 8. Qc2 {[%emt 0:01:11]} Re8+ {[%emt 0:00:08]} 9. Ne2 {[%emt 0:00:08]} h6 {[%emt 0:03:33]} 10. Be3 {[%emt 0:00:49]} Qc7 {[%emt 0:04:03]} 11. O-O-O {[%emt 0:04:00]} Be6 {[%emt 0:10:06]} 12. c4 {[%emt 0:07:47]} Na6 {[%emt 0:02:07]} 13. a3 {[%emt 0:00:35]} Rac8 {[%emt 0:14:57]} 14. Kb1 {[%emt 0:03:14]} Qb8 {[%emt 0:02:56]} 15. h3 {[%emt 0:06:58]} b5 {[%emt 0:01:03]} 16. c5 {[%emt 0:00:32]} Bf8 {[%emt 0:00:04]} 17. Bf4 {[%emt 0:00:47]} Qb7 {[%emt 0:01:48]} 18. Nc3 {[%emt 0:00:46]} Nc7 {[%emt 0:00:47]} 19. Bxc7 {[%emt 0:00:30]} Rxc7 {[%emt 0:00:46]} 20. b4 {[%emt 0:00:42]} Rd8 {[%emt 0:05:30]} 21. f4 {[%emt 0:15:20]} a5 {[%emt 0:06:13]} 22. f5 {[%emt 0:01:03]} Bc4 {[%emt 0:05:39]} 23. Be4 {[%emt 0:00:22]} axb4 {[%emt 0:01:16]} 24. axb4 {[%emt 0:00:05]} Rcd7 {[%emt 0:00:20]} 25. Qf2 {[%emt 0:00:59]} Be7 {[%emt 0:08:24]} 26. Kb2 {[%emt 0:00:56]} Ra8 {[%emt 0:03:45]} 27. Ra1 {[%emt 0:00:55]} Bd8 {[%emt 0:01:22]} 28. Rxa8 {[%emt 0:01:13]} Qxa8 {[%emt 0:00:04]} 29. Ra1 {[%emt 0:00:05]} Qb7 {[%emt 0:00:13]} 30. Rd1 {[%emt 0:00:42]} Qa6 {[%emt 0:06:15]} 31. Ra1 {[%emt 0:01:39]} Qc8 {[%emt 0:04:19]} 32. g4 {[%emt 0:00:41]} Be7 {[%emt 0:03:06]} 33. Rd1 {[%emt 0:08:12]} Ra7 {[%emt 0:02:56]} 1/2-1/2

[Event "2nd Gujarat Open 2019"]
[Site "Ahmedabad, Gujarat"]
[Date "2019.09.29"]
[Round "10.12"]
[White "Murshed, Niaz"]
[Black "Katdare, Jayant C"]
[Result "1-0"]
[ECO "E10"]
[WhiteElo "2405"]
[BlackElo "2046"]
[Annotator "ChessBase"]
[PlyCount "65"]
[EventDate "2019.09.22"]
[EventType "swiss"]
[EventCountry "IND"]
[SourceTitle "playchess.com"]
[Source "ChessBase"]
[SourceQuality "1"]
[TimeControl "5400+30"]

1. d4 {[%emt 0:00:00]} Nf6 {[%emt 0:00:00]} 2. c4 {[%emt 0:00:00]} e6 {[%emt 0:00:05]} 3. Nf3 {[%emt 0:00:07]} d5 {[%emt 0:00:17]} 4. g3 {[%emt 0:01:52]} Bb4+ {[%emt 0:00:36]} 5. Bd2 {[%emt 0:00:06]} Be7 {[%emt 0:00:08]} 6. Bg2 {[%emt 0:00:16]} O-O {[%emt 0:01:01]} 7. O-O {[%emt 0:01:53]} c6 {[%emt 0:00:30]} 8. Qc2 {[%emt 0:00:30]} b6 {[%emt 0:01:12]} 9. Rd1 {[%emt 0:05:38]} Bb7 {[%emt 0:00:20]} 10. b3 {[%emt 0:02:12]} Na6 {[%emt 0:03:16]} 11. Nc3 {[%emt 0:02:48]} Rc8 {[%emt 0:06:48]} 12. a3 {[%emt 0:04:29]} c5 {[%emt 0:14:42]} 13. Nb5 {[%emt 0:12:18]} Ra8 {[%emt 0:03:12]} 14. Bf4 {[%emt 0:04:13]} Nh5 {[%emt 0:01:12]} 15. Be3 {[%emt 0:05:57]} Nc7 {[%emt 0:11:34]} 16. Nc3 {[%emt 0:10:47]} Rc8 {[%emt 0:12:11]} 17. dxc5 {[%emt 0:04:11]} bxc5 {[%emt 0:00:41]} 18. Ne5 {[%emt 0:01:51]} Bd6 {[%emt 0:07:44]} 19. f4 {[%emt 0:09:46]} Nf6 {[%emt 0:01:02]} 20. h3 {[%emt 0:10:59]} Qe7 {[%emt 0:02:54]} 21. Bf2 {[%emt 0:02:07]} Rfd8 {[%emt 0:02:22]} 22. Ng4 {[%emt 0:02:25]} Ne4 {[%emt 0:05:38]} 23. cxd5 {[%emt 0:00:06]} exd5 {[%emt 0:05:14]} 24. Nxe4 {[%emt 0:00:13]} dxe4 {[%emt 0:00:03]} 25. Ne3 {[%emt 0:00:11]} g6 {[%emt 0:00:54]} 26. Nc4 {[%emt 0:00:44]} Ne6 {[%emt 0:09:28]} 27. e3 {[%emt 0:01:38]} f5 {[%emt 0:00:59]} 28. Be1 {[%emt 0:00:06]} Nd4 29. exd4 {[%emt 0:03:57]} cxd4 {[%emt 0:03:10]} 30. Qb2 {[%emt 0:00:42]} Bc5 {[%emt 0:01:32]} 31. b4 {[%emt 0:01:16]} d3+ {[%emt 0:00:14]} 32. bxc5 {[%emt 0:00:11]} Qxc5+ {[%emt 0:01:28]} 33. Bf2 {[%emt 0:00:14]} 1-0

[Event "2nd Gujarat Open 2019"]
[Site "Ahmedabad, Gujarat"]
[Date "2019.09.29"]
[Round "10.13"]
[White "Eraschenkov, Denis"]
[Black "Liyanage, Ranindu Dilshan"]
[Result "1-0"]
[ECO "B50"]
[WhiteElo "2390"]
[BlackElo "1956"]
[Annotator "ChessBase"]
[PlyCount "111"]
[EventDate "2019.09.22"]
[EventType "swiss"]
[EventCountry "IND"]
[SourceTitle "playchess.com"]
[Source "ChessBase"]
[SourceQuality "1"]
[TimeControl "5400+30"]

1. e4 {[%emt 0:00:00]} c5 {[%emt 0:00:00]} 2. Nf3 {[%emt 0:00:00]} d6 {[%emt 0:00:00]} 3. c3 {[%emt 0:00:00]} Nf6 {[%emt 0:00:02]} 4. h3 {[%emt 0:00:01]} Nc6 {[%emt 0:00:08]} 5. Bd3 d5 {[%emt 0:00:25]} 6. e5 {[%emt 0:00:42]} Nd7 {[%emt 0:00:05]} 7. Bb5 {[%emt 0:01:46]} Qb6 {[%emt 0:00:18]} 8. Ba4 {[%emt 0:01:54]} Qa6 {[%emt 0:06:13]} 9. Na3 {[%emt 0:02:06]} e6 {[%emt 0:00:30]} 10. Nb5 {[%emt 0:05:00]} Qa5 {[%emt 0:02:17]} 11. O-O {[%emt 0:01:14]} a6 {[%emt 0:01:22]} 12. Nd6+ {[%emt 0:00:34]} Bxd6 {[%emt 0:00:54]} 13. exd6 {[%emt 0:00:05]} c4 {[%emt 0:09:05]} 14. d4 {[%emt 0:04:33]} cxd3 {[%emt 0:05:28]} 15. b4 {[%emt 0:03:03]} Qd8 {[%emt 0:03:25]} 16. Qxd3 {[%emt 0:01:22]} O-O {[%emt 0:02:16]} 17. Re1 {[%emt 0:21:32]} Nf6 {[%emt 0:09:44]} 18. Bg5 {[%emt 0:02:30]} Qxd6 {[%emt 0:01:46]} 19. Bc2 {[%emt 0:03:51]} e5 {[%emt 0:14:05]} 20. Qe3 {[%emt 0:16:08]} e4 {[%emt 0:04:54]} 21. Nd4 {[%emt 0:02:25]} h6 {[%emt 0:04:45]} 22. Bf4 {[%emt 0:02:21]} Qe7 {[%emt 0:00:44]} 23. Rad1 {[%emt 0:02:35]} Nxd4 {[%emt 0:02:16]} 24. Rxd4 {[%emt 0:05:47]} Be6 {[%emt 0:02:53]} 25. c4 {[%emt 0:02:02]} Rfc8 {[%emt 0:04:08]} 26. c5 {[%emt 0:04:27]} b6 {[%emt 0:01:29]} 27. Bd6 {[%emt 0:02:37]} Qd7 {[%emt 0:00:41]} 28. Bb3 {[%emt 0:00:28]} a5 {[%emt 0:12:13]} 29. Be5 {[%emt 0:01:05]} bxc5 {[%emt 0:02:32]} 30. bxc5 {[%emt 0:00:09]} a4 {[%emt 0:01:08]} 31. c6 {[%emt 0:04:44]} Qxc6 {[%emt 0:01:03]} 32. Bxf6 {[%emt 0:00:56]} axb3 {[%emt 0:02:19]} 33. Qg3 {[%emt 0:00:57]} Bg4 {[%emt 0:00:11]} 34. Bxg7 {[%emt 0:03:22]} bxa2 {[%emt 0:00:39]} 35. Be5 {[%emt 0:03:14]} a1=Q {[%emt 0:00:46]} 36. Rdxe4 {[%emt 0:00:43]} Qxe1+ {[%emt 0:03:34]} 37. Rxe1 {[%emt 0:00:05]} Qg6 {[%emt 0:00:14]} 38. hxg4 {[%emt 0:00:14]} Rc4 {[%emt 0:00:55]} 39. f3 {[%emt 0:02:31]} Rac8 {[%emt 0:00:51]} 40. Kh2 {[%emt 0:00:42]} d4 {[%emt 0:02:12]} 41. Rd1 {[%emt 0:01:50]} d3 {[%emt 0:00:30]} 42. f4 {[%emt 0:00:29]} Rd8 {[%emt 0:00:38]} 43. Qh4 {[%emt 0:00:36]} Rcc8 {[%emt 0:00:42]} 44. Rd2 {[%emt 0:00:29]} Rd7 {[%emt 0:00:40]} 45. Bf6 {[%emt 0:00:31]} Rc2 {[%emt 0:00:36]} 46. f5 {[%emt 0:00:32]} Qh7 {[%emt 0:00:24]} 47. Qg3 {[%emt 0:00:36]} Rc8 {[%emt 0:00:43]} 48. Rxd3 {[%emt 0:00:13]} Rxd3 {[%emt 0:00:11]} 49. Qxd3 {[%emt 0:00:02]} h5 {[%emt 0:00:51]} 50. g5 {[%emt 0:00:15]} h4 {[%emt 0:00:27]} 51. Qd7 {[%emt 0:00:31]} Ra8 {[%emt 0:00:19]} 52. Qc6 {[%emt 0:00:16]} Rb8 {[%emt 0:00:46]} 53. Be5 {[%emt 0:00:14]} Rd8 {[%emt 0:00:31]} 54. Qf6 {[%emt 0:00:42]} Rf8 {[%emt 0:00:22]} 55. g6 {[%emt 0:00:44]} Qh6 {[%emt 0:00:47]} 56. g7 {[%emt 0:00:20]} 1-0

[Event "2nd Gujarat Open 2019"]
[Site "Ahmedabad, Gujarat"]
[Date "2019.09.29"]
[Round "10.14"]
[White "Sidhant, Mohapatra"]
[Black "Kadam Om Manish"]
[Result "1-0"]
[ECO "B50"]
[WhiteElo "2357"]
[BlackElo "1930"]
[Annotator "ChessBase"]
[PlyCount "65"]
[EventDate "2019.09.22"]
[EventType "swiss"]
[EventCountry "IND"]
[SourceTitle "playchess.com"]
[Source "ChessBase"]
[SourceQuality "1"]
[TimeControl "5400+30"]

1. e4 {[%emt 0:00:00]} c5 {[%emt 0:00:00]} 2. Nf3 {[%emt 0:00:00]} d6 {[%emt 0:00:00]} 3. c3 {[%emt 0:00:29]} Nf6 {[%emt 0:00:00]} 4. Bd3 {[%emt 0:00:19]} g6 {[%emt 0:00:11]} 5. O-O {[%emt 0:01:23]} Bg7 {[%emt 0:00:11]} 6. Bc2 {[%emt 0:00:10]} O-O {[%emt 0:00:56]} 7. d4 {[%emt 0:00:45]} cxd4 {[%emt 0:00:29]} 8. cxd4 {[%emt 0:00:02]} d5 {[%emt 0:00:09]} 9. e5 {[%emt 0:00:35]} Ne8 {[%emt 0:00:07]} 10. h3 {[%emt 0:01:27]} Nc6 {[%emt 0:00:10]} 11. Nc3 {[%emt 0:00:43]} Nc7 {[%emt 0:00:17]} 12. Be3 {[%emt 0:02:36]} b5 {[%emt 0:01:22]} 13. Rc1 {[%emt 0:00:17]} Qd7 {[%emt 0:10:18]} 14. Qd2 {[%emt 0:04:02]} Ne6 {[%emt 0:05:14]} 15. Bb3 {[%emt 0:11:08]} Nc7 {[%emt 0:00:37]} 16. Ne2 {[%emt 0:00:13]} Bb7 {[%emt 0:02:18]} 17. Nf4 {[%emt 0:04:00]} Rfc8 {[%emt 0:01:15]} 18. Rc5 {[%emt 0:00:40]} Nd8 {[%emt 0:04:38]} 19. Nd3 {[%emt 0:11:02]} Nce6 {[%emt 0:01:48]} 20. Rxc8 {[%emt 0:02:52]} Rxc8 {[%emt 0:00:04]} 21. h4 {[%emt 0:00:11]} Nc6 {[%emt 0:01:19]} 22. h5 {[%emt 0:02:34]} a5 {[%emt 0:11:48]} 23. hxg6 {[%emt 0:04:03]} hxg6 {[%emt 0:00:08]} 24. g3 {[%emt 0:00:15]} a4 {[%emt 0:01:24]} 25. Bd1 {[%emt 0:00:09]} Kh7 {[%emt 0:02:41]} 26. Nf4 {[%emt 0:01:05]} Nxf4 {[%emt 0:02:46]} 27. Bxf4 {[%emt 0:00:27]} Rh8 {[%emt 0:00:49]} 28. e6 {[%emt 0:00:09]} fxe6 {[%emt 0:00:38]} 29. Qd3 {[%emt 0:01:44]} Nxd4 {[%emt 0:06:31]} 30. Ng5+ {[%emt 0:01:38]} Kg8 {[%emt 0:00:08]} 31. Qxg6 {[%emt 0:00:08]} Rh6 {[%emt 0:00:06]} 32. Qf7+ {[%emt 0:00:04]} Kh8 {[%emt 0:00:07]} 33. Be5 {[%emt 0:00:04]} 1-0

[Event "2nd Gujarat Open 2019"]
[Site "Ahmedabad, Gujarat"]
[Date "2019.09.29"]
[Round "10.15"]
[White "Kiran, Manisha Mohanty"]
[Black "Sahoo, Utkal Ranjan"]
[Result "1/2-1/2"]
[ECO "C67"]
[WhiteElo "2102"]
[BlackElo "2329"]
[Annotator "ChessBase"]
[PlyCount "94"]
[EventDate "2019.09.22"]
[EventType "swiss"]
[EventCountry "IND"]
[SourceTitle "playchess.com"]
[Source "ChessBase"]
[SourceQuality "1"]
[TimeControl "5400+30"]

1. e4 e5 2. Nf3 Nc6 3. Bb5 Nf6 4. O-O Nxe4 5. d4 Nd6 6. Bxc6 dxc6 7. dxe5 Nf5 8. Qxd8+ Kxd8 9. Nc3 Ke8 10. h3 Be7 11. b3 Be6 12. Ne4 h6 13. Bb2 Rd8 14. Rad1 Rxd1 15. Rxd1 h5 16. Bc1 Bd5 17. Re1 c5 18. Bg5 b6 19. c3 h4 20. Bf4 Kd7 21. Nfg5 Bxg5 22. Nxg5 Be6 23. Rd1+ Kc6 24. Kh2 a5 25. g4 Ne7 26. Nxe6 fxe6 27. Bg5 Ng6 28. Rd8 Rxd8 29. Bxd8 b5 30. Bg5 Nxe5 31. Bxh4 Nd3 32. Bg3 Nc1 33. Be5 g5 34. f4 gxf4 35. g5 Kd7 36. Bxf4 Nxa2 37. c4 bxc4 38. bxc4 Nb4 39. h4 Nd3 40. Bd2 Ke7 41. Bxa5 Kf7 42. h5 Nf4 43. h6 Kg6 44. Bxc7 Nd3 45. Bd6 Nb2 46. Bxc5 Nxc4 47. Kg3 Ne5 1/2-1/2

[Event "2nd Gujarat Open 2019"]
[Site "Ahmedabad, Gujarat"]
[Date "2019.09.29"]
[Round "10.16"]
[White "Satkar, Chirag"]
[Black "Rathnakaran, K.."]
[Result "0-1"]
[ECO "A42"]
[WhiteElo "2052"]
[BlackElo "2325"]
[Annotator "NA"]
[PlyCount "160"]
[EventDate "2019.09.22"]
[EventType "swiss"]
[EventCountry "IND"]
[SourceTitle "playchess.com"]
[Source "ChessBase"]
[SourceQuality "1"]
[TimeControl "5400+30"]

1. d4 {[%emt 0:00:00]} g6 {[%emt 0:00:00]} 2. c4 {[%emt 0:00:00]} Bg7 {[%emt 0:00:00]} 3. Nc3 {[%emt 0:00:08]} d6 {[%emt 0:00:00]} 4. e4 {[%emt 0:00:26]} Nc6 {[%emt 0:00:00]} 5. Be3 {[%emt 0:00:53]} e5 {[%emt 0:00:02]} 6. d5 {[%emt 0:01:45]} Nce7 {[%emt 0:00:06]} 7. Qd2 {[%emt 0:15:27]} f5 {[%emt 0:00:05]} 8. f3 {[%emt 0:00:04]} f4 {[%emt 0:00:16]} 9. Bf2 {[%emt 0:00:09]} Nf6 {[%emt 0:00:04]} 10. O-O-O {[%emt 0:00:17]} a6 {[%emt 0:00:16]} 11. Kb1 {[%emt 0:00:39]} Bd7 {[%emt 0:00:12]} 12. Nge2 {[%emt 0:09:27]} b5 {[%emt 0:00:06]} 13. c5 {[%emt 0:01:15]} O-O {[%emt 0:00:42]} 14. a3 {[%emt 0:08:44]} Qb8 {[%emt 0:00:07]} 15. Nc1 {[%emt 0:02:58]} b4 {[%emt 0:00:21]} 16. axb4 {[%emt 0:00:27]} Qxb4 {[%emt 0:00:07]} 17. N3a2 {[%emt 0:00:46]} Qb8 {[%emt 0:01:22]} 18. c6 {[%emt 0:09:07]} Be8 {[%emt 0:00:28]} 19. g4 {[%emt 0:02:05]} Bf7 {[%emt 0:00:06]} 20. Nc3 {[%emt 0:02:08]} g5 {[%emt 0:00:06]} 21. h4 {[%emt 0:01:10]} h6 {[%emt 0:00:09]} 22. h5 {[%emt 0:03:07]} Kh8 {[%emt 0:00:22]} 23. Qc2 {[%emt 0:06:05]} Bg8 {[%emt 0:01:25]} 24. Ka1 {[%emt 0:00:43]} Qe8 {[%emt 0:03:30]} 25. Nb3 {[%emt 0:00:58]} a5 {[%emt 0:01:24]} 26. Bb5 {[%emt 0:07:20]} Qb8 {[%emt 0:00:24]} 27. Ba4 {[%emt 0:03:18]} Nc8 {[%emt 0:00:06]} 28. Nc1 {[%emt 0:02:21]} Nb6 {[%emt 0:00:10]} 29. Bb3 {[%emt 0:01:19]} a4 {[%emt 0:00:42]} 30. Ba2 {[%emt 0:00:02]} Ra5 {[%emt 0:00:16]} 31. N1e2 {[%emt 0:02:39]} Qa7 {[%emt 0:01:59]} 32. Rd2 {[%emt 0:03:21]} Rb8 {[%emt 0:00:52]} 33. Nb1 {[%emt 0:02:39]} Qa8 {[%emt 0:03:01]} 34. Nec3 {[%emt 0:00:12]} Nc8 {[%emt 0:02:54]} 35. Na3 {[%emt 0:00:17]} Rb4 {[%emt 0:00:25]} 36. Nc4 {[%emt 0:02:16]} Ra6 {[%emt 0:00:06]} 37. Rc1 {[%emt 0:00:39]} Qb8 {[%emt 0:02:06]} 38. Qd1 {[%emt 0:01:10]} Ne7 {[%emt 0:01:38]} 39. Na3 {[%emt 0:00:12]} Ra8 {[%emt 0:00:27]} 40. Rcc2 {[%emt 0:00:57]} Bf7 {[%emt 0:02:52]} 41. Qe2 {[%emt 0:00:39]} Qc8 {[%emt 0:00:51]} 42. Ncb5 {[%emt 0:01:19]} Ra5 {[%emt 0:00:57]} 43. Nc3 {[%emt 0:00:51]} Qb8 {[%emt 0:03:22]} 44. Nc4 {[%emt 0:00:33]} Ra8 {[%emt 0:02:52]} 45. Na3 {[%emt 0:00:09]} Nc8 {[%emt 0:01:22]} 46. Nc4 {[%emt 0:01:13]} Ng8 {[%emt 0:00:41]} 47. Na3 {[%emt 0:00:37]} Nge7 {[%emt 0:00:29]} 48. Bc4 {[%emt 0:00:53]} Na7 {[%emt 0:02:06]} 49. Ba2 {[%emt 0:00:37]} Bf6 {[%emt 0:01:14]} 50. Ncb1 {[%emt 0:00:38]} Kg7 {[%emt 0:00:47]} 51. Nc3 {[%emt 0:01:02]} Be8 {[%emt 0:02:46]} 52. Bg1 {[%emt 0:00:46]} Kh8 {[%emt 0:03:57]} 53. Bf2 {[%emt 0:00:06]} Bg7 {[%emt 0:00:05]} 54. Bg1 {[%emt 0:00:26]} Bf7 {[%emt 0:04:58]} 55. Bf2 {[%emt 0:00:03]} Bg8 {[%emt 0:00:09]} 56. Bg1 {[%emt 0:00:04]} Bh7 {[%emt 0:00:06]} 57. Bf2 {[%emt 0:00:24]} Ng8 {[%emt 0:03:42]} 58. Bg1 {[%emt 0:00:56]} Nf6 {[%emt 0:00:04]} 59. Bf2 {[%emt 0:00:20]} Nc8 {[%emt 0:00:15]} 60. Bc4 {[%emt 0:00:40]} Ne7 {[%emt 0:00:40]} 61. Ba2 {[%emt 0:01:26]} Bg8 {[%emt 0:01:43]} 62. Bg1 {[%emt 0:00:06]} Bf7 {[%emt 0:00:04]} 63. Bf2 {[%emt 0:00:31]} Qc8 {[%emt 0:02:20]} 64. Bg1 {[%emt 0:01:17]} Neg8 {[%emt 0:04:26]} 65. Nd1 {[%emt 0:00:48]} Ra5 {[%emt 0:03:20]} 66. Bc4 {[%emt 0:00:15]} Qa8 {[%emt 0:01:32]} 67. Ba2 {[%emt 0:00:16]} Rb3 {[%emt 0:00:24]} 68. Nc3 {[%emt 0:00:58]} Qc8 {[%emt 0:03:13]} 69. Nd1 {[%emt 0:01:18]} Nxg4 {[%emt 0:04:24]} 70. Bxb3 {[%emt 0:01:24]} axb3 {[%emt 0:00:34]} 71. Rc3 {[%emt 0:00:35]} N4f6 {[%emt 0:01:05]} 72. Rxb3 {[%emt 0:00:28]} Ne7 {[%emt 0:00:44]} 73. Rb7 {[%emt 0:01:49]} Nfxd5 {[%emt 0:02:35]} 74. exd5 {[%emt 0:00:26]} Nxd5 {[%emt 0:01:27]} 75. Qe4 {[%emt 0:02:25]} Bg8 {[%emt 0:00:57]} 76. Nf2 {[%emt 0:00:39]} Qa8 {[%emt 0:01:00]} 77. Rd3 {[%emt 0:00:30]} Rc5 {[%emt 0:01:25]} 78. Rdb3 {[%emt 0:01:36]} Rc1+ {[%emt 0:00:46]} 79. Ka2 {[%emt 0:00:11]} Rxg1 {[%emt 0:00:05]} 80. Rb8 {[%emt 0:00:37]} Qxb8 {[%emt 0:00:08]} 0-1

[Event "2nd Gujarat Open 2019"]
[Site "Ahmedabad, Gujarat"]
[Date "2019.09.29"]
[Round "10.17"]
[White "Kavinda, Akila"]
[Black "Bharat Kumar Reddy Poluri"]
[Result "0-1"]
[ECO "A40"]
[WhiteElo "2029"]
[BlackElo "2304"]
[Annotator "ChessBase"]
[PlyCount "54"]
[EventDate "2019.09.22"]
[EventType "swiss"]
[EventCountry "IND"]
[SourceTitle "playchess.com"]
[Source "ChessBase"]
[SourceQuality "1"]
[TimeControl "5400+30"]

1. d4 {[%emt 0:00:00]} e6 {[%emt 0:01:27]} 2. Nf3 {[%emt 0:00:00]} d5 {[%emt 0:00:12]} 3. c4 {[%emt 0:00:00]} Nf6 {[%emt 0:00:03]} 4. e3 {[%emt 0:00:17]} b6 {[%emt 0:01:27]} 5. b3 {[%emt 0:02:44]} Bb7 {[%emt 0:00:13]} 6. Bd3 {[%emt 0:00:07]} Be7 {[%emt 0:00:35]} 7. O-O {[%emt 0:00:19]} O-O {[%emt 0:00:03]} 8. Nc3 {[%emt 0:03:39]} Nbd7 {[%emt 0:00:35]} 9. Bb2 {[%emt 0:02:01]} c5 {[%emt 0:00:13]} 10. cxd5 {[%emt 0:05:49]} Nxd5 {[%emt 0:01:57]} 11. Nxd5 {[%emt 0:21:23]} Bxd5 {[%emt 0:00:34]} 12. Rc1 {[%emt 0:10:46]} Bf6 {[%emt 0:02:58]} 13. Ba3 {[%emt 0:13:42]} Be7 {[%emt 0:02:10]} 14. Bb2 {[%emt 0:04:12]} Bb7 {[%emt 0:00:54]} 15. Qe2 {[%emt 0:00:55]} cxd4 {[%emt 0:00:18]} 16. Nxd4 {[%emt 0:02:11]} Nc5 {[%emt 0:00:19]} 17. Bb5 {[%emt 0:14:30]} Bf6 {[%emt 0:02:46]} 18. Rfd1 {[%emt 0:01:07]} Qd5 {[%emt 0:07:45]} 19. f3 {[%emt 0:02:15]} a6 {[%emt 0:01:46]} 20. Bc4 {[%emt 0:06:47]} Qh5 {[%emt 0:01:49]} 21. b4 {[%emt 0:03:27]} Na4 {[%emt 0:00:09]} 22. Ba1 {[%emt 0:00:17]} b5 {[%emt 0:00:24]} 23. Bb3 {[%emt 0:01:15]} Rac8 {[%emt 0:01:20]} 24. Bxa4 {[%emt 0:03:38]} bxa4 {[%emt 0:00:09]} 25. Qe1 {[%emt 0:00:34]} Be5 {[%emt 0:00:50]} 26. f4 {[%emt 0:00:23]} Bf6 {[%emt 0:00:58]} 27. Qg3 {[%emt 0:00:37]} e5 {[%emt 0:00:49]} 0-1

[Event "2nd Gujarat Open 2019"]
[Site "Ahmedabad, Gujarat"]
[Date "2019.09.29"]
[Round "10.18"]
[White "Pandey Srishti"]
[Black "Srihari L R"]
[Result "1/2-1/2"]
[ECO "B06"]
[WhiteElo "1928"]
[BlackElo "2283"]
[Annotator "ChessBase"]
[PlyCount "51"]
[EventDate "2019.09.22"]
[EventType "swiss"]
[EventCountry "IND"]
[SourceTitle "playchess.com"]
[Source "ChessBase"]
[SourceQuality "1"]
[TimeControl "5400+30"]

1. d4 {[%emt 0:00:00]} d6 {[%emt 0:00:37]} 2. e4 {[%emt 0:00:00]} g6 {[%emt 0:01:05]} 3. Nc3 {[%emt 0:00:00]} Bg7 {[%emt 0:00:07]} 4. Be2 {[%emt 0:00:03]} Nd7 {[%emt 0:00:39]} 5. Be3 {[%emt 0:00:18]} a6 {[%emt 0:02:47]} 6. a4 {[%emt 0:00:04]} b6 {[%emt 0:01:19]} 7. f4 {[%emt 0:03:22]} e6 {[%emt 0:01:00]} 8. Bf3 {[%emt 0:01:46]} Bb7 {[%emt 0:00:58]} 9. Nge2 {[%emt 0:00:17]} Ne7 {[%emt 0:00:16]} 10. O-O {[%emt 0:01:24]} O-O {[%emt 0:01:13]} 11. Ng3 {[%emt 0:01:31]} f5 {[%emt 0:01:32]} 12. e5 {[%emt 0:01:12]} Bxf3 {[%emt 0:00:20]} 13. Rxf3 {[%emt 0:00:17]} Qc8 {[%emt 0:06:34]} 14. Nge2 {[%emt 0:13:05]} Qb7 {[%emt 0:02:42]} 15. Qe1 {[%emt 0:02:42]} b5 {[%emt 0:05:43]} 16. Qh4 {[%emt 0:00:34]} Kf7 {[%emt 0:01:45]} 17. Rd1 {[%emt 0:08:18]} b4 {[%emt 0:07:55]} 18. d5 {[%emt 0:01:28]} bxc3 {[%emt 0:00:49]} 19. dxe6+ {[%emt 0:00:04]} Kxe6 {[%emt 0:00:04]} 20. Qxh7 {[%emt 0:14:02]} Bxe5 {[%emt 0:25:18]} 21. Nd4+ {[%emt 0:13:59]} Bxd4 {[%emt 0:00:50]} 22. Bxd4 {[%emt 0:00:00]} Nf6 {[%emt 0:07:13]} 23. Bxf6 {[%emt 0:00:11]} Kxf6 24. Qh4+ {[%emt 0:05:59]} Kf7 {[%emt 0:00:17]} 25. Qh7+ {[%emt 0:00:55]} Kf6 {[%emt 0:01:21]} 26. Re1 1/2-1/2